bitfinex/quotes_BTCUSD_20250809
["timestamp","ask_amount","ask_price","bid_price","bid_amount"]
[1754782649884,0.17155601,116580.0,116570.0,0.1375]
[1754782652594,0.48920476,116580.0,116570.0,0.1375]
[1754782653282,0.56927819,116580.0,116570.0,0.1375]
[1754782653486,0.25162944,116580.0,116570.0,0.1375]
[1754782653712,0.17155601,116580.0,116570.0,0.1375]
[1754782656330,0.48920476,116580.0,116570.0,0.1375]
[1754782657188,0.17155601,116580.0,116570.0,0.1375]
[1754782662807,0.17155601,116580.0,116570.0,0.62671948]
[1754782677527,0.17155601,116580.0,116570.0,0.45514875]
[1754782677756,0.25162944,116580.0,116570.0,0.45514875]
[1754782678367,0.17155601,116580.0,116570.0,0.45514875]
[1754782685148,0.17155601,116580.0,116570.0,0.62671948]
[1754782688355,0.17155601,116580.0,116570.0,0.30907073]
[1754782688567,0.17155601,116580.0,116570.0,0.45514875]
[1754782689840,0.17155601,116580.0,116570.0,0.1375]
[1754782690043,0.17155601,116580.0,116570.0,0.45514875]
[1754782696354,0.17155601,116580.0,116570.0,0.1375]
[1754782696591,0.17155601,116580.0,116570.0,0.45514875]
[1754782699637,0.25162944,116580.0,116570.0,0.45514875]
[1754782702134,0.17155601,116580.0,116570.0,0.45514875]
[1754782703549,0.17155601,116580.0,116570.0,0.1375]
[1754782703738,0.17155601,116580.0,116570.0,0.45514875]
[1754782704330,0.17353601,116580.0,116570.0,0.45514875]
[1754782704542,0.17353601,116580.0,116570.0,0.1375]
[1754782708702,0.49118476,116580.0,116570.0,0.1375]
[1754782710667,0.17353601,116580.0,116570.0,0.1375]
[1754782711622,0.49118476,116580.0,116570.0,0.1375]
[1754782714763,0.17353601,116580.0,116570.0,0.1375]
[1754782720822,0.49118476,116580.0,116570.0,0.1375]
[1754782721341,0.57145619,116580.0,116570.0,0.1375]
[1754782722519,0.57145619,116580.0,116570.0,0.13437]
[1754782724308,0.57145619,116580.0,116570.0,0.13216]
[1754782724642,0.57441619,116580.0,116570.0,0.13216]
[1754782725879,0.57145619,116580.0,116570.0,0.13216]
[1754782726243,0.57145619,116580.0,116570.0,0.001]
[1754782737592,0.57145619,116580.0,116570.0,0.00635]
[1754782737818,0.25380744,116580.0,116570.0,0.00635]
[1754782738030,0.17353601,116580.0,116570.0,0.00635]
[1754782738263,0.17353601,116580.0,116570.0,0.13747]
[1754782739840,0.17155601,116580.0,116570.0,0.13747]
[1754782743193,0.17155601,116580.0,116570.0,0.45511875]
[1754782743885,0.17155601,116580.0,116570.0,0.13747]
[1754782745288,0.56957319,116580.0,116570.0,0.13747]
[1754782745477,0.56957319,116580.0,116570.0,0.13743]
[1754782748853,0.17155601,116580.0,116570.0,0.13743]
[1754782749061,0.48920476,116580.0,116570.0,0.13743]
[1754782751209,0.49120476,116580.0,116570.0,0.13743]
[1754782752417,0.17355601,116580.0,116570.0,0.13743]
[1754782752663,0.49120476,116580.0,116570.0,0.13743]
[1754782754154,0.57177319,116580.0,116570.0,0.13743]
[1754782754402,0.57177319,116580.0,116570.0,0.00316]
[1754782754612,0.25412444,116580.0,116570.0,0.001]
[1754782754836,0.88942194,116580.0,116570.0,0.001]
[1754782755031,0.57177319,116580.0,116570.0,0.001]
[1754782758462,0.25412444,116580.0,116570.0,0.001]
[1754782758908,0.57177319,116580.0,116570.0,0.001]
[1754782766522,0.25412444,116580.0,116570.0,0.001]
[1754782766885,0.57177319,116580.0,116570.0,0.001]
[1754782771978,0.70281319,116580.0,116570.0,0.001]
[1754782772701,0.38516444,116580.0,116570.0,0.001]
[1754782772960,0.70281319,116580.0,116570.0,0.001]
[1754782780013,0.38516444,116580.0,116570.0,0.001]
[1754782780240,0.70281319,116580.0,116570.0,0.001]
[1754782782631,0.38516444,116580.0,116570.0,0.001]
[1754782782856,0.70281319,116580.0,116570.0,0.001]
[1754782783678,0.38516444,116580.0,116570.0,0.001]
[1754782783922,0.70281319,116580.0,116570.0,0.001]
[1754782788456,0.38516444,116580.0,116570.0,0.001]
[1754782788671,0.70281319,116580.0,116570.0,0.001]
[1754782792590,0.38516444,116580.0,116570.0,0.001]
[1754782792835,0.70281319,116580.0,116570.0,0.001]
[1754782796372,0.38809444,116580.0,116570.0,0.001]
[1754782796623,0.70574319,116580.0,116570.0,0.001]
[1754782798943,0.70281319,116580.0,116570.0,0.001]
[1754782800513,0.38516444,116580.0,116570.0,0.001]
[1754782800744,0.70281319,116580.0,116570.0,0.001]
[1754782814520,0.38516444,116580.0,116570.0,0.001]
[1754782814927,0.70281319,116580.0,116570.0,0.001]
[1754782816619,0.38516444,116580.0,116570.0,0.001]
[1754782816794,0.70281319,116580.0,116570.0,0.00418]
[1754782818094,0.70281319,116580.0,116570.0,0.00615]
[1754782820257,0.38516444,116580.0,116570.0,0.00615]
[1754782820464,0.70281319,116580.0,116570.0,0.00615]
[1754782820887,0.38516444,116580.0,116570.0,0.00615]
[1754782821087,0.70281319,116580.0,116570.0,0.00615]
[1754782823845,0.38516444,116580.0,116570.0,0.00615]
[1754782824074,0.30259601,116580.0,116570.0,0.32379875]
[1754782833084,0.62024476,116580.0,116570.0,0.00615]
[1754782833995,0.30259601,116580.0,116570.0,0.00615]
[1754782834434,0.30259601,116580.0,116570.0,0.32379875]
[1754782838879,0.30259601,116580.0,116570.0,0.00615]
[1754782839091,0.70484229,116580.0,116570.0,0.00615]
[1754782846904,0.70484229,116580.0,116570.0,0.00297]
[1754782850595,0.38719354,116580.0,116570.0,0.00297]
[1754782850831,0.70484229,116580.0,116570.0,0.001]
[1754782852250,0.38719354,116580.0,116570.0,0.001]
[1754782852511,0.70484229,116580.0,116570.0,0.001]
[1754782855068,0.38719354,116580.0,116570.0,0.001]
[1754782855272,0.70484229,116580.0,116570.0,0.001]
[1754782861043,0.38719354,116580.0,116570.0,0.001]
[1754782861258,0.70484229,116580.0,116570.0,0.001]
[1754782866434,0.38719354,116580.0,116570.0,0.001]
[1754782866640,0.70484229,116580.0,116570.0,0.001]
[1754782868660,0.38719354,116580.0,116570.0,0.001]
[1754782869088,0.70484229,116580.0,116570.0,0.001]
[1754782871370,0.38719354,116580.0,116570.0,0.001]
[1754782871546,0.70484229,116580.0,116570.0,0.001]
[1754782874559,0.38719354,116580.0,116570.0,0.001]
[1754782874784,0.70484229,116580.0,116570.0,0.001]
[1754782878800,0.70484229,116580.0,116570.0,0.00399]
[1754782883771,0.38719354,116580.0,116570.0,0.00399]
[1754782883970,0.70484229,116580.0,116570.0,0.00399]
[1754782885333,0.70484229,116580.0,116570.0,0.001]
[1754782901968,0.38719354,116580.0,116570.0,0.001]
[1754782902182,0.70484229,116580.0,116570.0,0.001]
[1754782903227,0.38719354,116580.0,116570.0,0.001]
[1754782903426,0.70484229,116580.0,116570.0,0.001]
[1754782910723,0.38719354,116580.0,116570.0,0.001]
[1754782910978,0.70484229,116580.0,116570.0,0.001]
[1754782930010,0.38719354,116580.0,116570.0,0.001]
[1754782930197,0.70484229,116580.0,116570.0,0.001]
[1754782930655,0.38719354,116580.0,116570.0,0.001]
[1754782930873,0.70484229,116580.0,116570.0,0.001]
[1754782932210,0.70484229,116580.0,116570.0,0.00598]
[1754782934542,0.70484229,116580.0,116570.0,0.003]
[1754782934765,0.70484229,116580.0,116570.0,0.001]
[1754782935846,0.38719354,116580.0,116570.0,0.001]
[1754782936115,0.70484229,116580.0,116570.0,0.001]
[1754782951016,1.02545104,116580.0,116570.0,0.001]
[1754782957815,0.39015354,116580.0,116570.0,0.001]
[1754782958211,1.02545104,116580.0,116570.0,0.001]
[1754782960260,1.05121404,116580.0,116570.0,0.001]
[1754782961490,0.41591654,116580.0,116570.0,0.001]
[1754782961697,1.05121404,116580.0,116570.0,0.001]
[1754782963941,1.04825404,116580.0,116570.0,0.001]
[1754782978939,1.4557149,116580.0,116570.0,0.001]
[1754782979150,1.7957149,116580.0,116570.0,0.001]
[1754782979356,1.81316392,116580.0,116570.0,0.001]
[1754782980234,0.17158544,116560.0,116550.0,0.00313]
[1754782980437,0.17158544,116560.0,116550.0,0.00514]
[1754782980438,0.97402982,116560.0,116550.0,0.00514]
[1754782981294,0.17161489,116540.0,116530.0,0.025763]
[1754782981512,0.17161489,116540.0,116530.0,0.11475684]
[1754782981943,0.17161489,116540.0,116530.0,0.11788684]
[1754782983496,0.17161489,116540.0,116530.0,0.12288684]
[1754782984277,0.21458369,116540.0,116530.0,0.12288684]
[1754782986264,0.22310685,116540.0,116530.0,0.12288684]
[1754782987150,0.21458369,116540.0,116530.0,0.12288684]
[1754782990862,0.22309377,116540.0,116530.0,0.12288684]
[1754782993667,0.22309377,116540.0,116530.0,0.25372684]
[1754782993873,0.21458369,116540.0,116530.0,0.25372684]
[1754782995099,0.53223244,116540.0,116530.0,0.25372684]
[1754782995323,0.21458369,116540.0,116530.0,0.25372684]
[1754782995662,0.22294409,116540.0,116530.0,0.25372684]
[1754782997657,0.17997529,116540.0,116530.0,0.25372684]
[1754783000548,0.49960404,116540.0,116530.0,0.12288684]
[1754783000762,0.49960404,116540.0,116530.0,0.16686473]
[1754783000958,0.49960404,116540.0,116530.0,0.03602473]
[1754783001197,0.49960404,116540.0,116530.0,0.03102473]
[1754783001716,0.49960404,116540.0,116530.0,0.03202473]
[1754783002643,0.58639829,116540.0,116530.0,0.00626173]
[1754783002885,0.58639829,116540.0,116530.0,0.00112173]
[1754783003366,0.58639829,116540.0,116530.0,0.00312173]
[1754783013690,0.26874954,116540.0,116530.0,0.00312173]
[1754783013889,0.49960404,116540.0,116530.0,0.00312173]
[1754783023885,0.18195529,116540.0,116530.0,0.00312173]
[1754783024086,0.49960404,116540.0,116530.0,0.00312173]
[1754783026572,0.49960404,116540.0,116530.0,0.00630173]
[1754783031551,0.81725279,116540.0,116530.0,0.00312173]
[1754783031793,0.90404704,116540.0,116530.0,0.00312173]
[1754783032028,0.58935829,116540.0,116530.0,0.00312173]
[1754783032233,0.58639829,116540.0,116530.0,0.00312173]
[1754783032742,0.90404704,116540.0,116530.0,0.00312173]
[1754783035911,1.03504704,116540.0,116530.0,0.00312173]
[1754783042516,0.39974954,116540.0,116530.0,0.00312173]
[1754783042937,0.71739829,116540.0,116530.0,0.00312173]
[1754783044212,1.03504704,116540.0,116530.0,0.00312173]
[1754783045047,0.71739829,116540.0,116530.0,0.00312173]
[1754783045545,0.39974954,116540.0,116530.0,0.00312173]
[1754783045753,0.31295529,116540.0,116530.0,0.00312173]
[1754783045962,0.63060404,116540.0,116530.0,0.00312173]
[1754783047644,0.63060404,116540.0,116530.0,0.00633173]
[1754783048687,0.94825279,116540.0,116530.0,0.00312173]
[1754783048874,1.03504704,116540.0,116530.0,0.00312173]
[1754783052179,0.39974954,116540.0,116530.0,0.00312173]
[1754783052337,1.03504704,116540.0,116530.0,0.00312173]
[1754783052539,0.39974954,116540.0,116530.0,0.00312173]
[1754783052745,1.03504704,116540.0,116530.0,0.00312173]
[1754783056492,0.39974954,116540.0,116530.0,0.00312173]
[1754783056718,1.03504704,116540.0,116530.0,0.00312173]
[1754783057739,0.71739829,116540.0,116530.0,0.00312173]
[1754783058087,0.71739829,116540.0,116530.0,0.00635173]
[1754783059379,0.39974954,116540.0,116530.0,0.00635173]
[1754783059591,0.71739829,116540.0,116530.0,0.00635173]
[1754783060020,1.03504704,116540.0,116530.0,0.00635173]
[1754783060494,0.71739829,116540.0,116530.0,0.00635173]
[1754783061231,0.71739829,116540.0,116530.0,0.00842173]
[1754783064676,0.39974954,116540.0,116530.0,0.00842173]
[1754783064911,0.71541829,116540.0,116530.0,0.00842173]
[1754783072073,0.71740829,116540.0,116530.0,0.00842173]
[1754783081138,0.71740829,116540.0,116530.0,0.00519173]
[1754783082582,0.71740829,116540.0,116530.0,0.00842173]
[1754783084209,0.39975954,116540.0,116530.0,0.00842173]
[1754783084407,0.71740829,116540.0,116530.0,0.00842173]
[1754783089720,0.39975954,116540.0,116530.0,0.00842173]
[1754783089925,0.71740829,116540.0,116530.0,0.00842173]
[1754783098052,0.31077529,116540.0,116530.0,0.32607048]
[1754783098263,0.30241489,116540.0,116530.0,0.32607048]
[1754783098477,0.30241489,116540.0,116530.0,0.00842173]
[1754783098699,0.30241489,116540.0,116530.0,0.32607048]
[1754783102246,0.30241489,116540.0,116530.0,0.00842173]
[1754783104824,0.30241489,116540.0,116530.0,0.32607048]
[1754783105040,0.38920914,116540.0,116530.0,0.00842173]
[1754783108343,0.39118914,116540.0,116530.0,0.00842173]
[1754783110876,0.70883789,116540.0,116530.0,0.00842173]
[1754783112696,0.39118914,116540.0,116530.0,0.00842173]
[1754783112830,0.70883789,116540.0,116530.0,0.00842173]
[1754783117236,0.39118914,116540.0,116530.0,0.00842173]
[1754783120048,0.70883789,116540.0,116530.0,0.00842173]
[1754783132524,0.39118914,116540.0,116530.0,0.00842173]
[1754783134091,0.39118914,116540.0,116530.0,0.00519173]
[1754783134503,0.39118914,116540.0,116530.0,0.00312173]
[1754783136184,0.70883789,116540.0,116530.0,0.00312173]
[1754783137037,0.39118914,116540.0,116530.0,0.00312173]
[1754783138839,0.70883789,116540.0,116530.0,0.00312173]
[1754783145025,0.39118914,116540.0,116530.0,0.00312173]
[1754783147346,0.70883789,116540.0,116530.0,0.00312173]
[1754783150457,0.39118914,116540.0,116530.0,0.00312173]
[1754783154235,0.70883789,116540.0,116530.0,0.00312173]
[1754783155877,0.39118914,116540.0,116530.0,0.00312173]
[1754783156123,0.70883789,116540.0,116530.0,0.00312173]
[1754783166108,0.39118914,116540.0,116530.0,0.00312173]
[1754783166324,0.70883789,116540.0,116530.0,0.00312173]
[1754783166533,0.39118914,116540.0,116530.0,0.00312173]
[1754783166764,0.70883789,116540.0,116530.0,0.00312173]
[1754783167254,0.39118914,116540.0,116530.0,0.00312173]
[1754783167478,0.70883789,116540.0,116530.0,0.00312173]
[1754783167730,0.62204364,116540.0,116530.0,0.00312173]
[1754783168949,0.30439489,116540.0,116530.0,0.00312173]
[1754783169148,0.62204364,116540.0,116530.0,0.00312173]
[1754783180488,0.30439489,116540.0,116530.0,0.00312173]
[1754783180698,0.67765081,116540.0,116530.0,0.00312173]
[1754783182314,0.22920206,116540.0,116530.0,0.00844173]
[1754783182530,0.35984206,116540.0,116530.0,0.00844173]
[1754783183020,0.35984206,116540.0,116530.0,0.32609048]
[1754783184820,0.35984206,116540.0,116530.0,0.00844173]
[1754783185012,0.35984206,116540.0,116530.0,0.32609048]
[1754783186977,0.35984206,116540.0,116530.0,0.00844173]
[1754783188938,0.35786206,116540.0,116530.0,0.4977201]
[1754783190846,0.35786206,116540.0,116530.0,0.6283601]
[1754783196566,0.35786206,116540.0,116530.0,0.31071135]
[1754783196772,0.35786206,116540.0,116530.0,0.6283601]
[1754783197242,0.1306,116550.0,116540.0,0.17161489]
[1754783197454,0.30220017,116550.0,116540.0,0.57828575]
[1754783197661,0.1306,116550.0,116540.0,0.58144575]
[1754783198082,0.1306,116550.0,116540.0,0.60720975]
[1754783199259,0.1306,116550.0,116540.0,0.60820975]
[1754783204017,0.30220017,116550.0,116540.0,0.60820975]
[1754783210023,0.30220017,116550.0,116540.0,0.290561]
[1754783210234,0.38649551,116550.0,116540.0,0.60820975]
[1754783210716,0.77447404,116550.0,116540.0,0.026764]
[1754783210929,0.77447404,116550.0,116540.0,0.001]
[1754783219994,0.45682529,116550.0,116540.0,0.001]
[1754783220238,0.77447404,116550.0,116540.0,0.001]
[1754783230735,0.45682529,116550.0,116540.0,0.001]
[1754783232114,0.45682529,116550.0,116540.0,0.31864875]
[1754783236142,0.45682529,116550.0,116540.0,0.00406]
[1754783236305,0.45682529,116550.0,116540.0,0.32170875]
[1754783236861,0.45682529,116550.0,116540.0,0.00406]
[1754783238930,0.77447404,116550.0,116540.0,0.00406]
[1754783243818,0.38847551,116550.0,116540.0,0.00406]
[1754783244023,0.30418017,116550.0,116540.0,0.32170875]
[1754783247310,0.30418017,116550.0,116540.0,0.00406]
[1754783253970,0.62182892,116550.0,116540.0,0.00406]
[1754783254412,0.30418017,116550.0,116540.0,0.00406]
[1754783254644,0.62182892,116550.0,116540.0,0.00406]
[1754783254863,0.70862317,116550.0,116540.0,0.00406]
[1754783255185,0.39097442,116550.0,116540.0,0.00406]
[1754783274167,0.39097442,116550.0,116540.0,0.001]
[1754783278383,0.3039079,116550.0,116540.0,0.001]
[1754783285956,0.3039079,116550.0,116540.0,0.31864875]
[1754783286406,0.3039079,116550.0,116540.0,0.32158875]
[1754783288529,0.3039079,116550.0,116540.0,0.32369875]
[1754783297872,0.3039079,116550.0,116540.0,0.00605]
[1754783298095,0.38867001,116550.0,116540.0,0.00605]
[1754783298502,0.38867001,116550.0,116540.0,0.32369875]
[1754783298908,0.38867001,116550.0,116540.0,0.00605]
[1754783302257,0.3039079,116550.0,116540.0,0.00605]
[1754783303111,0.3039079,116550.0,116540.0,0.32369875]
[1754783305842,0.3039079,116550.0,116540.0,0.00605]
[1754783306076,0.3039079,116550.0,116540.0,0.32369875]
[1754783308451,0.3019279,116550.0,116540.0,0.32369875]
[1754783311215,0.38619601,116550.0,116540.0,0.00605]
[1754783311446,0.38619601,116550.0,116540.0,0.32369875]
[1754783312825,0.3019279,116550.0,116540.0,0.32369875]
[1754783319078,0.3019279,116550.0,116540.0,0.49531364]
[1754783324265,0.3019279,116550.0,116540.0,0.62567364]
[1754783326363,0.3019279,116550.0,116540.0,0.49531364]
[1754783332120,0.3019279,116550.0,116540.0,0.17766489]
[1754783332338,0.3019279,116550.0,116540.0,0.49531364]
[1754783332556,0.38619601,116550.0,116540.0,0.49531364]
[1754783333674,0.3019279,116550.0,116540.0,0.49531364]
[1754783342344,0.3019279,116550.0,116540.0,0.52107964]
[1754783343628,0.18016471,116560.0,116550.0,0.17160017]
[1754783343900,0.13032,116560.0,116550.0,0.62469892]
[1754783344128,0.37025319,116570.0,116560.0,0.17158544]
[1754783344362,0.37025319,116570.0,116560.0,0.17357544]
[1754783344599,0.45704744,116570.0,116560.0,0.17671544]
[1754783344820,0.37025319,116570.0,116560.0,0.49436419]
[1754783345276,0.37225319,116570.0,116560.0,0.49436419]
[1754783346489,0.37025319,116570.0,116560.0,0.49436419]
[1754783347000,0.37125319,116570.0,116560.0,0.49436419]
[1754783347469,0.37225319,116570.0,116560.0,0.49436419]
[1754783349111,0.45904744,116570.0,116560.0,0.49436419]
[1754783349334,0.45904744,116570.0,116560.0,0.17671544]
[1754783353237,0.37225319,116570.0,116560.0,0.17671544]
[1754783353699,0.37225319,116570.0,116560.0,0.20247744]
[1754783362790,0.37225319,116570.0,116560.0,0.030892]
[1754783363028,0.37423319,116570.0,116560.0,0.030892]
[1754783363294,0.69188194,116570.0,116560.0,0.030892]
[1754783363540,0.37423319,116570.0,116560.0,0.030892]
[1754783363771,0.46102744,116570.0,116560.0,0.030892]
[1754783364364,0.46102744,116570.0,116560.0,0.20247744]
[1754783379430,0.46102744,116570.0,116560.0,0.17671544]
[1754783386949,0.46102744,116570.0,116560.0,0.49436419]
[1754783387737,0.46102744,116570.0,116560.0,0.17671544]
[1754783388283,0.46102744,116570.0,116560.0,0.49436419]
[1754783389877,0.46102744,116570.0,116560.0,0.17671544]
[1754783390094,0.37423319,116570.0,116560.0,0.17671544]
[1754783393495,0.37423319,116570.0,116560.0,0.00513]
[1754783402847,0.37423319,116570.0,116560.0,0.00199]
[1754783403079,0.37423319,116570.0,116550.0,0.64837092]
[1754783403290,0.37423319,116570.0,116550.0,0.73523303]
[1754783404141,0.37323319,116570.0,116550.0,0.73523303]
[1754783404492,0.37223319,116570.0,116550.0,0.73523303]
[1754783404926,0.37223319,116570.0,116550.0,0.73623303]
[1754783407676,0.17158544,116560.0,116550.0,0.73623303]
[1754783407981,0.17158544,116560.0,116550.0,0.73821303]
[1754783408635,0.17158544,116560.0,116550.0,0.73721303]
[1754783409058,0.17158544,116560.0,116550.0,0.73821303]
[1754783422317,0.17158544,116560.0,116550.0,0.42056428]
[1754783422528,0.17158544,116560.0,116550.0,0.73821303]
[1754783425220,0.17353544,116560.0,116550.0,0.41538428]
[1754783425454,0.17353544,116560.0,116550.0,0.73303303]
[1754783425955,0.17353544,116560.0,116550.0,0.41538428]
[1754783426166,0.17646544,116560.0,116550.0,0.73303303]
[1754783426481,0.17646544,116560.0,116550.0,0.24378411]
[1754783426700,0.17353544,116560.0,116550.0,0.73303303]
[1754783426916,0.17353544,116560.0,116550.0,0.41538428]
[1754783427121,0.17353544,116560.0,116550.0,0.73303303]
[1754783428013,0.17353544,116560.0,116550.0,0.41538428]
[1754783428221,0.17353544,116560.0,116550.0,0.73303303]
[1754783428427,0.17646544,116560.0,116550.0,0.156922]
[1754783428884,0.17646544,116560.0,116550.0,0.47457075]
[1754783429051,0.17353544,116560.0,116550.0,0.47457075]
[1754783430363,0.17353544,116560.0,116550.0,0.156922]
[1754783430492,0.17353544,116560.0,116550.0,0.47457075]
[1754783431824,0.17353544,116560.0,116550.0,0.47754075]
[1754783432045,0.17353544,116560.0,116550.0,0.47457075]
[1754783432270,0.17353544,116560.0,116550.0,0.47957075]
[1754783432710,0.17353544,116560.0,116550.0,0.156922]
[1754783432953,0.49118419,116560.0,116550.0,0.156922]
[1754783433161,0.49411419,116560.0,116550.0,0.156922]
[1754783433384,0.17646544,116560.0,116550.0,0.026762]
[1754783433599,0.58055093,116560.0,116550.0,0.13112]
[1754783436289,0.26290218,116560.0,116550.0,0.13112]
[1754783436508,0.58055093,116560.0,116550.0,0.13112]
[1754783439675,0.26290218,116560.0,116550.0,0.13112]
[1754783439907,0.25997218,116560.0,116550.0,0.13112]
[1754783440139,0.57762093,116560.0,116550.0,0.13112]
[1754783441627,0.25997218,116560.0,116550.0,0.13112]
[1754783442167,0.57762093,116560.0,116550.0,0.13112]
[1754783443740,0.25997218,116560.0,116550.0,0.13112]
[1754783443935,0.57762093,116560.0,116550.0,0.13112]
[1754783446372,0.25997218,116560.0,116550.0,0.13112]
[1754783446836,0.57762093,116560.0,116550.0,0.13112]
[1754783447054,0.49118419,116560.0,116550.0,0.13612]
[1754783448449,0.17353544,116560.0,116550.0,0.13612]
[1754783449363,0.17353544,116560.0,116550.0,0.45376875]
[1754783450018,0.17353544,116560.0,116550.0,0.13612]
[1754783450229,0.25997218,116560.0,116550.0,0.45376875]
[1754783451017,0.25997218,116560.0,116550.0,0.13612]
[1754783451791,0.17353544,116560.0,116550.0,0.45376875]
[1754783453574,0.17353544,116560.0,116550.0,0.13612]
[1754783454019,0.17353544,116560.0,116550.0,0.45376875]
[1754783454851,0.17158544,116560.0,116550.0,0.45376875]
[1754783457858,0.17158544,116560.0,116550.0,0.13612]
[1754783458112,0.17158544,116560.0,116550.0,0.45376875]
[1754783458502,0.25753418,116560.0,116550.0,0.45376875]
[1754783461243,0.25753418,116560.0,116550.0,0.13612]
[1754783464661,0.25753418,116560.0,116550.0,0.45376875]
[1754783468277,0.25753418,116560.0,116550.0,0.13612]
[1754783472646,0.57518293,116560.0,116550.0,0.13612]
[1754783474996,0.25753418,116560.0,116550.0,0.13612]
[1754783475185,0.57518293,116560.0,116550.0,0.13612]
[1754783475969,0.57716293,116560.0,116550.0,0.13612]
[1754783478634,0.25951418,116560.0,116550.0,0.13612]
[1754783478887,0.57716293,116560.0,116550.0,0.13612]
[1754783483515,0.17158544,116560.0,116550.0,0.62536892]
[1754783484620,0.37025319,116570.0,116550.0,0.62536892]
[1754783484840,0.37025319,116570.0,116560.0,0.00303]
[1754783485080,0.37025319,116570.0,116560.0,0.00516]
[1754783485965,0.68790194,116570.0,116560.0,0.00516]
[1754783487490,0.68890194,116570.0,116560.0,0.00516]
[1754783488387,0.68990194,116570.0,116560.0,0.00516]
[1754783490636,0.69188194,116570.0,116560.0,0.00516]
[1754783490821,0.37423319,116570.0,116560.0,0.00516]
[1754783490974,0.74848689,116570.0,116560.0,0.00516]
[1754783494637,0.74848689,116570.0,116560.0,0.00213]
[1754783494886,0.17158544,116560.0,116550.0,0.62239892]
[1754783495130,0.17158544,116560.0,116550.0,0.62452892]
[1754783495310,0.17158544,116560.0,116550.0,0.30688017]
[1754783495866,0.25837969,116560.0,116550.0,0.30688017]
[1754783496082,0.57602844,116560.0,116550.0,0.30688017]
[1754783496745,0.57602844,116560.0,116550.0,0.30788017]
[1754783497393,0.25837969,116560.0,116550.0,0.30788017]
[1754783497816,0.57602844,116560.0,116550.0,0.30788017]
[1754783500231,0.25837969,116560.0,116550.0,0.30788017]
[1754783504157,0.17158544,116560.0,116550.0,0.30788017]
[1754783504660,0.17158544,116560.0,116550.0,0.62552892]
[1754783508343,0.17158544,116560.0,116550.0,0.30788017]
[1754783508581,0.17158544,116560.0,116550.0,0.62552892]
[1754783513260,0.17158544,116560.0,116550.0,0.30788017]
[1754783516229,0.25837969,116560.0,116550.0,0.30788017]
[1754783521363,0.17158544,116560.0,116550.0,0.30788017]
[1754783522671,0.17158544,116560.0,116550.0,0.62552892]
[1754783529449,0.17158544,116560.0,116550.0,0.30788017]
[1754783529697,0.17158544,116560.0,116550.0,0.62552892]
[1754783534981,0.17158544,116560.0,116550.0,0.30788017]
[1754783535180,0.17158544,116560.0,116550.0,0.62552892]
[1754783536176,0.17158544,116560.0,116550.0,0.30788017]
[1754783536406,0.17158544,116560.0,116550.0,0.62552892]
[1754783537378,0.25837969,116560.0,116550.0,0.62552892]
[1754783539351,0.17158544,116560.0,116550.0,0.62552892]
[1754783541836,0.17158544,116560.0,116550.0,0.30788017]
[1754783542044,0.17158544,116560.0,116550.0,0.62552892]
[1754783542599,0.74450689,116570.0,116550.0,0.62552892]
[1754783543443,0.74450689,116570.0,116550.0,0.30688017]
[1754783543650,0.74450689,116570.0,116550.0,0.62452892]
[1754783544052,0.42685814,116570.0,116550.0,0.30688017]
[1754783544257,0.74450689,116570.0,116550.0,0.62452892]
[1754783544877,0.17158544,116560.0,116550.0,0.30688017]
[1754783545087,0.25837969,116560.0,116550.0,0.62452892]
[1754783545531,0.25837969,116560.0,116550.0,0.62552892]
[1754783546458,0.17158544,116560.0,116550.0,0.62552892]
[1754783547112,0.17158544,116560.0,116550.0,0.62452892]
[1754783547327,0.17158544,116560.0,116550.0,0.62552892]
[1754783548823,0.17158544,116560.0,116550.0,0.30788017]
[1754783549038,0.17158544,116560.0,116550.0,0.62552892]
[1754783550863,0.17158341,116570.0,116560.0,0.17158544]
[1754783551069,0.49121216,116570.0,116560.0,0.17158544]
[1754783551545,0.49121216,116570.0,116550.0,0.30575017]
[1754783551742,0.49121216,116570.0,116550.0,0.62339892]
[1754783552224,0.49121216,116570.0,116550.0,0.62239892]
[1754783552670,0.49221216,116570.0,116550.0,0.62239892]
[1754783553148,0.58000641,116570.0,116550.0,0.62239892]
[1754783553635,0.57900641,116570.0,116550.0,0.62239892]
[1754783553866,0.57800641,116570.0,116550.0,0.62239892]
[1754783554068,0.57800641,116570.0,116550.0,0.62339892]
[1754783554285,0.57800641,116570.0,116550.0,0.30575017]
[1754783554510,0.26035766,116570.0,116550.0,0.62339892]
[1754783554736,0.57800641,116570.0,116550.0,0.62339892]
[1754783555402,0.64635619,116570.0,116550.0,0.30575017]
[1754783555623,0.64635619,116570.0,116550.0,0.62339892]
[1754783557950,0.17158544,116560.0,116550.0,0.30575017]
[1754783558182,0.17158544,116560.0,116550.0,0.62552892]
[1754783558886,0.17158544,116560.0,116550.0,0.62452892]
[1754783560079,0.17158544,116560.0,116550.0,0.30688017]
[1754783560312,0.17158544,116560.0,116550.0,0.62452892]
[1754783561030,0.17158544,116560.0,116550.0,0.30688017]
[1754783561278,0.56234315,116560.0,116550.0,0.30688017]
[1754783561484,0.2446944,116560.0,116550.0,0.30688017]
[1754783562482,0.2446944,116560.0,116550.0,0.30788017]
[1754783571410,0.2446944,116560.0,116550.0,0.62552892]
[1754783571612,0.17158544,116560.0,116550.0,0.62552892]
[1754783572222,0.17158544,116560.0,116550.0,0.30788017]
[1754783572603,0.17158544,116560.0,116550.0,0.62552892]
[1754783577455,0.55758194,116570.0,116550.0,0.62552892]
[1754783577711,0.64437619,116570.0,116550.0,0.62552892]
[1754783578591,0.64437619,116570.0,116550.0,0.62452892]
[1754783579459,0.64437619,116570.0,116550.0,0.62552892]
[1754783583093,0.17158544,116560.0,116550.0,0.30788017]
[1754783583313,0.17158544,116560.0,116550.0,0.62552892]
[1754783583525,0.2446944,116560.0,116550.0,0.62552892]
[1754783585105,0.2446944,116560.0,116550.0,0.62452892]
[1754783585544,0.2446944,116560.0,116550.0,0.62552892]
[1754783586195,0.2466744,116560.0,116550.0,0.30788017]
[1754783586827,0.2466744,116560.0,116550.0,0.62552892]
[1754783589825,0.2446944,116560.0,116550.0,0.62552892]
[1754783591280,0.2446944,116560.0,116550.0,0.30788017]
[1754783593715,0.2446944,116560.0,116550.0,0.62552892]
[1754783597137,0.07310896,116560.0,116550.0,0.62552892]
[1754783597568,0.07310896,116560.0,116550.0,0.30788017]
[1754783597788,0.2446944,116560.0,116550.0,0.62552892]
[1754783610535,0.17158544,116560.0,116550.0,0.62552892]
[1754783617844,0.17158341,116570.0,116550.0,0.62552892]
[1754783618263,0.17158341,116570.0,116560.0,0.30476544]
[1754783618480,0.17158341,116570.0,116560.0,0.62454419]
[1754783618889,0.17158341,116570.0,116560.0,0.30689544]
[1754783619094,0.17158341,116570.0,116560.0,0.62454419]